[Event "Titled Tuesday Blitz June 6 Early 2023"]
[White "rikchessmx"]
[Black "Reprintsev, Alexander"]
[BlackFideId "14100541"]
[WhiteElo "2285"]
[BlackElo "2229"]
[Result "1-0"]
[Round "3"]
[TimeControl "180+2"]
[Date "2023.06.06"]
[WhiteClock "0:00:06"]
[BlackClock "0:00:01"]
[Board "134"]

1. e4 {[%clk 0:03:00]}  d5 {[%clk 0:02:49]} 2. exd5 {[%clk 0:03:00]}  Qxd5 {[%clk 0:02:49]} 3. Nc3 {[%clk 0:03:00]}  Qa5 {[%clk 0:02:49]} 4. Bc4 {[%clk 0:03:01]}  Nf6 {[%clk 0:02:49]} 5. d3 {[%clk 0:03:01]}  Bg4 {[%clk 0:02:49]} 6. f3 {[%clk 0:03:01]}  Be6 {[%clk 0:02:49]} 7. Bxe6 {[%clk 0:02:54]}  fxe6 {[%clk 0:02:49]} 8. Bd2 {[%clk 0:02:50]}  Qb6 {[%clk 0:02:46]} 9. Qe2 {[%clk 0:02:43]}  Nd5 {[%clk 0:02:28]} 10. O-O-O {[%clk 0:02:38]}  Nd7 {[%clk 0:02:20]} 11. Nh3 {[%clk 0:02:37]}  h6 {[%clk 0:02:17]} 12. Qe4 {[%clk 0:02:32]}  O-O-O {[%clk 0:02:07]} 13. Nxd5 {[%clk 0:02:31]}  exd5 {[%clk 0:02:07]} 14. Qxd5 {[%clk 0:02:32]}  e6 {[%clk 0:01:47]} 15. Qb3 {[%clk 0:02:31]}  Qa6 {[%clk 0:01:39]} 16. Nf4 {[%clk 0:01:54]}  Nc5 {[%clk 0:01:38]} 17. Qc4 {[%clk 0:01:54]}  Qxc4 {[%clk 0:01:35]} 18. dxc4 {[%clk 0:01:52]}  Bd6 {[%clk 0:01:31]} 19. Ng6 {[%clk 0:01:49]}  Rhe8 {[%clk 0:01:30]} 20. Bc3 {[%clk 0:01:39]}  e5 {[%clk 0:01:26]} 21. Rhe1 {[%clk 0:01:39]}  Nd7 {[%clk 0:01:24]} 22. b4 {[%clk 0:01:25]}  b6 {[%clk 0:01:17]} 23. a3 {[%clk 0:01:18]}  Re6 {[%clk 0:01:16]} 24. Nh4 {[%clk 0:01:17]}  Rf6 {[%clk 0:01:11]} 25. g4 {[%clk 0:00:57]}  g6 {[%clk 0:01:00]} 26. Rd3 {[%clk 0:00:42]}  Rg8 {[%clk 0:00:47]} 27. Rg1 {[%clk 0:00:33]}  Rf4 {[%clk 0:00:46]} 28. c5 {[%clk 0:00:20]}  bxc5 {[%clk 0:00:46]} 29. b5 {[%clk 0:00:20]}  c4 {[%clk 0:00:44]} 30. Rd2 {[%clk 0:00:18]}  Bxa3+ {[%clk 0:00:44]} 31. Kb1 {[%clk 0:00:17]}  Bc5 {[%clk 0:00:44]} 32. Rgg2 {[%clk 0:00:16]}  Nb6 {[%clk 0:00:44]} 33. Bxe5 {[%clk 0:00:13]}  Rf7 {[%clk 0:00:40]} 34. Bd4 {[%clk 0:00:13]}  c3 {[%clk 0:00:39]} 35. Rd3 {[%clk 0:00:11]}  Bxd4 {[%clk 0:00:35]} 36. Rxd4 {[%clk 0:00:11]}  Re7 {[%clk 0:00:27]} 37. Ka2 {[%clk 0:00:10]}  Re5 {[%clk 0:00:27]} 38. Rb4 {[%clk 0:00:09]}  Nd5 {[%clk 0:00:26]} 39. Rb3 {[%clk 0:00:07]}  Nf4 {[%clk 0:00:19]} 40. Rg1 {[%clk 0:00:07]}  Re3 {[%clk 0:00:17]} 41. Rd1 {[%clk 0:00:06]}  Rge8 {[%clk 0:00:15]} 42. Rd4 {[%clk 0:00:05]}  Ne2 {[%clk 0:00:14]} 43. Rc4 {[%clk 0:00:05]}  R8e5 {[%clk 0:00:12]} 44. Nxg6 {[%clk 0:00:03]}  Re6 {[%clk 0:00:10]} 45. Nf4 {[%clk 0:00:04]}  Nxf4 {[%clk 0:00:10]} 46. Rxf4 {[%clk 0:00:04]}  Re2 {[%clk 0:00:09]} 47. Ka3 {[%clk 0:00:03]}  Rxc2 {[%clk 0:00:09]} 48. Kb4 {[%clk 0:00:04]}  Re1 {[%clk 0:00:08]} 49. Rxc3 {[%clk 0:00:04]}  Rxc3 {[%clk 0:00:07]} 50. Kxc3 {[%clk 0:00:04]}  Rf1 {[%clk 0:00:07]} 51. Rf7 {[%clk 0:00:04]}  Kb7 {[%clk 0:00:08]} 52. h4 {[%clk 0:00:04]}  Kb6 {[%clk 0:00:08]} 53. g5 {[%clk 0:00:05]}  hxg5 {[%clk 0:00:07]} 54. hxg5 {[%clk 0:00:06]}  Kxb5 {[%clk 0:00:08]} 55. f4 {[%clk 0:00:06]}  c5 {[%clk 0:00:08]} 56. g6 {[%clk 0:00:06]}  Rf3+ {[%clk 0:00:08]} 57. Kc2 {[%clk 0:00:06]}  c4 {[%clk 0:00:08]} 58. g7 {[%clk 0:00:06]}  Rg3 {[%clk 0:00:08]} 59. f5 {[%clk 0:00:06]}  Kb4 {[%clk 0:00:08]} 60. f6 {[%clk 0:00:07]}  Rg2+ {[%clk 0:00:09]} 61. Kd1 {[%clk 0:00:06]}  Kc3 {[%clk 0:00:08]} 62. Rc7 {[%clk 0:00:06]}  Rg1+ {[%clk 0:00:07]} 63. Ke2 {[%clk 0:00:06]}  Rg2+ {[%clk 0:00:07]} 64. Kf3 {[%clk 0:00:07]}  Rg6 {[%clk 0:00:08]} 65. f7 {[%clk 0:00:05]}  Rxg7 {[%clk 0:00:08]} 66. Ke4 {[%clk 0:00:06]}  Rg4+ {[%clk 0:00:07]} 67. Kd5 {[%clk 0:00:07]}  Rf4 {[%clk 0:00:07]} 68. Rxc4+ {[%clk 0:00:07]}  Rxc4 {[%clk 0:00:07]} 69. f8=Q {[%clk 0:00:08]}  Rd4+ {[%clk 0:00:08]} 70. Kc5 {[%clk 0:00:07]}  Rc4+ {[%clk 0:00:08]} 71. Kb5 {[%clk 0:00:08]}  Rd4 {[%clk 0:00:06]} 72. Qf3+ {[%clk 0:00:09]}  Rd3 {[%clk 0:00:06]} 73. Qf6+ {[%clk 0:00:08]}  Kc2 {[%clk 0:00:06]} 74. Kb4 {[%clk 0:00:08]}  a5+ {[%clk 0:00:05]} 75. Ka4 {[%clk 0:00:08]}  Rc3 {[%clk 0:00:04]} 76. Kxa5 {[%clk 0:00:08]}  Kd3 {[%clk 0:00:04]} 77. Qf2 {[%clk 0:00:09]}  Rc2 {[%clk 0:00:03]} 78. Qf3+ {[%clk 0:00:08]}  Kd4 {[%clk 0:00:03]} 79. Qf4+ {[%clk 0:00:08]}  Kd3 {[%clk 0:00:02]} 80. Kb4 {[%clk 0:00:08]}  Rb2+ {[%clk 0:00:02]} 81. Kc5 {[%clk 0:00:07]}  Rc2+ {[%clk 0:00:02]} 82. Kd5 {[%clk 0:00:07]}  Rd2 {[%clk 0:00:01]} 83. Qe4+ {[%clk 0:00:07]}  Kc3+ {[%clk 0:00:02]} 84. Kc5 {[%clk 0:00:07]}  Kb2 {[%clk 0:00:01]} 85. Kb4 {[%clk 0:00:06]} 1-0


[Site "https://www.chess.com"]

[Event "Titled Tuesday Blitz June 6 Early 2023"]
[White "Kuzmin, Roman"]
[Black "Dubreuil, Julien"]
[WhiteFideId "44134932"]
[BlackFideId "621285"]
[WhiteElo "2122"]
[BlackElo "2269"]
[Result "0-1"]
[Round "3"]
[TimeControl "180+2"]
[Date "2023.06.06"]
[WhiteClock "0:00:02"]
[BlackClock "0:00:38"]
[Board "138"]

1. e4 {[%clk 0:03:00]}  e5 {[%clk 0:02:59]} 2. Nf3 {[%clk 0:02:57]}  Nc6 {[%clk 0:02:59]} 3. Bb5 {[%clk 0:02:58]}  Bc5 {[%clk 0:02:58]} 4. c3 {[%clk 0:02:49]}  Qf6 {[%clk 0:02:58]} 5. O-O {[%clk 0:02:41]}  Nge7 {[%clk 0:02:55]} 6. d3 {[%clk 0:02:22]}  h6 {[%clk 0:02:51]} 7. b4 {[%clk 0:02:15]}  Bb6 {[%clk 0:02:50]} 8. Bb2 {[%clk 0:02:08]}  O-O {[%clk 0:02:48]} 9. c4 {[%clk 0:01:58]}  d6 {[%clk 0:02:47]} 10. a3 {[%clk 0:01:35]}  Ng6 {[%clk 0:02:45]} 11. Bxc6 {[%clk 0:01:32]}  bxc6 {[%clk 0:02:45]} 12. d4 {[%clk 0:01:31]}  exd4 {[%clk 0:02:43]} 13. Nxd4 {[%clk 0:01:27]}  c5 {[%clk 0:02:42]} 14. bxc5 {[%clk 0:01:13]}  dxc5 {[%clk 0:02:42]} 15. e5 {[%clk 0:01:12]}  Qxe5 {[%clk 0:02:38]} 16. Re1 {[%clk 0:01:03]}  Qf6 {[%clk 0:02:38]} 17. Qf3 {[%clk 0:00:57]}  Bd7 {[%clk 0:02:08]} 18. Qxf6 {[%clk 0:00:56]}  gxf6 {[%clk 0:02:06]} 19. Nf3 {[%clk 0:00:57]}  Be6 {[%clk 0:01:58]} 20. Nbd2 {[%clk 0:00:56]}  Ba5 {[%clk 0:01:56]} 21. Rec1 {[%clk 0:00:52]}  Nf4 {[%clk 0:01:53]} 22. Kf1 {[%clk 0:00:42]}  Nd3 {[%clk 0:01:38]} 23. Bc3 {[%clk 0:00:33]}  Nxc1 {[%clk 0:01:35]} 24. Bxa5 {[%clk 0:00:32]}  Nd3 {[%clk 0:01:34]} 25. Ne4 {[%clk 0:00:24]}  Bxc4 {[%clk 0:01:32]} 26. Nxf6+ {[%clk 0:00:20]}  Kg7 {[%clk 0:01:32]} 27. Nh5+ {[%clk 0:00:17]}  Kg6 {[%clk 0:01:32]} 28. Ng3 {[%clk 0:00:18]}  Ne5+ {[%clk 0:01:16]} 29. Kg1 {[%clk 0:00:15]}  Nxf3+ {[%clk 0:01:16]} 30. gxf3 {[%clk 0:00:16]}  Bd5 {[%clk 0:01:14]} 31. f4 {[%clk 0:00:16]}  h5 {[%clk 0:01:03]} 32. h4 {[%clk 0:00:14]}  Rac8 {[%clk 0:01:02]} 33. f5+ {[%clk 0:00:14]}  Kh7 {[%clk 0:01:00]} 34. Rd1 {[%clk 0:00:12]}  Bc6 {[%clk 0:00:57]} 35. Bc3 {[%clk 0:00:08]}  Rg8 {[%clk 0:00:55]} 36. Kf1 {[%clk 0:00:07]}  Rg4 {[%clk 0:00:55]} 37. Nxh5 {[%clk 0:00:05]}  Rxh4 {[%clk 0:00:53]} 38. Nf6+ {[%clk 0:00:06]}  Kh6 {[%clk 0:00:53]} 39. Ke2 {[%clk 0:00:02]}  Rh1 {[%clk 0:00:47]} 40. Rd2 {[%clk 0:00:02]}  Rb8 {[%clk 0:00:44]} 41. Ke3 {[%clk 0:00:01]}  Rh3+ {[%clk 0:00:42]} 42. Kf4 {[%clk 0:00:01]}  Rxc3 {[%clk 0:00:41]} 43. f3 {[%clk 0:00:01]}  Rc4+ {[%clk 0:00:41]} 44. Kg3 {[%clk 0:00:01]}  Kg5 {[%clk 0:00:40]} 45. Ng4 {[%clk 0:00:02]}  Rxg4+ {[%clk 0:00:38]} 46. fxg4 {[%clk 0:00:02]}  Rb3+ {[%clk 0:00:38]} 47. Kf2 {[%clk 0:00:02]}  Kxg4 {[%clk 0:00:38]} 0-1


[Site "https://www.chess.com"]

[Event "Titled Tuesday Blitz June 6 Early 2023"]
[White "Naguleswaran, Annorjan"]
[Black "Janaszak, Dawid"]
[WhiteFideId "2093197"]
[BlackFideId "1119206"]
[WhiteElo "2130"]
[BlackElo "2220"]
[Result "0-1"]
[Round "3"]
[TimeControl "180+2"]
[Date "2023.06.06"]
[WhiteClock "0:00:03"]
[BlackClock "0:01:19"]
[Board "142"]

1. e4 {[%clk 0:02:21]}  c5 {[%clk 0:02:58]} 2. Nf3 {[%clk 0:02:21]}  Nc6 {[%clk 0:02:58]} 3. c3 {[%clk 0:02:21]}  e5 {[%clk 0:02:58]} 4. Bc4 {[%clk 0:02:20]}  Nf6 {[%clk 0:02:58]} 5. d3 {[%clk 0:02:13]}  Be7 {[%clk 0:02:58]} 6. O-O {[%clk 0:02:12]}  O-O {[%clk 0:02:58]} 7. a4 {[%clk 0:02:08]}  d6 {[%clk 0:02:54]} 8. h3 {[%clk 0:02:08]}  Kh8 {[%clk 0:02:54]} 9. Nbd2 {[%clk 0:02:00]}  Nd7 {[%clk 0:02:50]} 10. Re1 {[%clk 0:01:54]}  Nb6 {[%clk 0:02:50]} 11. Ba2 {[%clk 0:01:54]}  f5 {[%clk 0:02:50]} 12. Nf1 {[%clk 0:01:40]}  f4 {[%clk 0:02:49]} 13. d4 {[%clk 0:01:39]}  cxd4 {[%clk 0:02:47]} 14. cxd4 {[%clk 0:01:40]}  Qe8 {[%clk 0:02:36]} 15. a5 {[%clk 0:01:27]}  Nxa5 {[%clk 0:02:28]} 16. dxe5 {[%clk 0:01:26]}  dxe5 {[%clk 0:02:29]} 17. Nxe5 {[%clk 0:00:44]}  Bb4 {[%clk 0:02:28]} 18. Nf7+ {[%clk 0:00:44]}  Rxf7 {[%clk 0:02:28]} 19. Bxf7 {[%clk 0:00:44]}  Qxf7 {[%clk 0:02:28]} 20. Qd8+ {[%clk 0:00:44]}  Qg8 {[%clk 0:02:29]} 21. Rd1 {[%clk 0:00:34]}  Be6 {[%clk 0:02:19]} 22. Qh4 {[%clk 0:00:16]}  Nb3 {[%clk 0:02:09]} 23. Rb1 {[%clk 0:00:14]}  g5 {[%clk 0:02:03]} 24. Qh6 {[%clk 0:00:13]}  Qg6 {[%clk 0:01:52]} 25. Qxg6 {[%clk 0:00:10]}  hxg6 {[%clk 0:01:53]} 26. Bd2 {[%clk 0:00:09]}  Bc5 {[%clk 0:01:48]} 27. Bc3+ {[%clk 0:00:08]}  Kg8 {[%clk 0:01:48]} 28. Nd2 {[%clk 0:00:08]}  Rc8 {[%clk 0:01:44]} 29. Nxb3 {[%clk 0:00:06]}  Bxb3 {[%clk 0:01:45]} 30. Rd2 {[%clk 0:00:06]}  Kf7 {[%clk 0:01:34]} 31. Ra1 {[%clk 0:00:05]}  a6 {[%clk 0:01:32]} 32. Ra5 {[%clk 0:00:04]}  Nc4 {[%clk 0:01:30]} 33. Rd7+ {[%clk 0:00:03]}  Ke8 {[%clk 0:01:29]} 34. Rxb7 {[%clk 0:00:03]}  Nxa5 {[%clk 0:01:29]} 35. Bxa5 {[%clk 0:00:04]}  Ba4 {[%clk 0:01:23]} 36. Rg7 {[%clk 0:00:04]}  Bd4 {[%clk 0:01:19]} 37. Rxg6 {[%clk 0:00:04]}  Rc1+ {[%clk 0:01:18]} 38. Kh2 {[%clk 0:00:04]}  Bxf2 {[%clk 0:01:19]} 39. Rxg5 {[%clk 0:00:03]}  Bg3+ {[%clk 0:01:19]} 40. Rxg3 {[%clk 0:00:02]}  fxg3+ {[%clk 0:01:20]} 41. Kxg3 {[%clk 0:00:03]}  Rc2 {[%clk 0:01:19]} 0-1


[Site "https://www.chess.com"]

[Event "Titled Tuesday Blitz June 6 Early 2023"]
[White "Chernomordik, Pavel"]
[Black "Lakshmi C"]
[WhiteFideId "2804530"]
[BlackFideId "25035347"]
[WhiteElo "2193"]
[BlackElo "1942"]
[Result "1-0"]
[Round "3"]
[TimeControl "180+2"]
[Date "2023.06.06"]
[WhiteClock "0:01:56"]
[BlackClock "0:00:02"]
[Board "143"]

1. e4 {[%clk 0:03:00]}  c5 {[%clk 0:02:52]} 2. Nc3 {[%clk 0:02:59]}  Nc6 {[%clk 0:02:52]} 3. Bb5 {[%clk 0:02:59]}  g6 {[%clk 0:02:50]} 4. Bxc6 {[%clk 0:02:59]}  dxc6 {[%clk 0:02:40]} 5. f4 {[%clk 0:02:57]}  Bg7 {[%clk 0:02:38]} 6. Nf3 {[%clk 0:02:57]}  Bg4 {[%clk 0:02:30]} 7. h3 {[%clk 0:02:56]}  Bxf3 {[%clk 0:01:17]} 8. Qxf3 {[%clk 0:02:52]}  Bd4 {[%clk 0:01:17]} 9. d3 {[%clk 0:02:43]}  e5 {[%clk 0:01:01]} 10. Ne2 {[%clk 0:02:36]}  exf4 {[%clk 0:00:57]} 11. Bxf4 {[%clk 0:02:25]}  Ne7 {[%clk 0:00:13]} 12. Bh6 {[%clk 0:02:17]}  Bxb2 {[%clk 0:00:04]} 13. Rb1 {[%clk 0:02:16]}  Be5 {[%clk 0:00:04]} 14. O-O {[%clk 0:02:09]}  b6 {[%clk 0:00:03]} 15. Qxf7+ {[%clk 0:02:07]}  Kd7 {[%clk 0:00:04]} 16. Nf4 {[%clk 0:01:58]}  Qe8 {[%clk 0:00:02]} 17. Qe6+ {[%clk 0:01:56]}  Kc7 {[%clk 0:00:02]} 18. Qxe5+ {[%clk 0:01:56]} 1-0


[Site "https://www.chess.com"]

[Event "Titled Tuesday Blitz June 6 Early 2023"]
[White "Vyatkin, Dmitry"]
[Black "Aung Thant Zin"]
[WhiteFideId "4171900"]
[BlackFideId "13000063"]
[WhiteElo "2279"]
[BlackElo "2278"]
[Result "1-0"]
[Round "3"]
[TimeControl "180+2"]
[Date "2023.06.06"]
[WhiteClock "0:01:35"]
[BlackClock "0:01:41"]
[Board "144"]

1. d4 {[%clk 0:02:58]}  Nf6 {[%clk 0:02:59]} 2. c4 {[%clk 0:02:58]}  e6 {[%clk 0:02:59]} 3. g3 {[%clk 0:02:58]}  d5 {[%clk 0:02:58]} 4. Nf3 {[%clk 0:02:58]}  Be7 {[%clk 0:02:59]} 5. Bg2 {[%clk 0:02:58]}  O-O {[%clk 0:02:59]} 6. O-O {[%clk 0:02:59]}  dxc4 {[%clk 0:02:57]} 7. Qc2 {[%clk 0:02:59]}  a6 {[%clk 0:02:57]} 8. Qxc4 {[%clk 0:02:59]}  b5 {[%clk 0:02:57]} 9. Qc2 {[%clk 0:02:59]}  Bb7 {[%clk 0:02:57]} 10. Bd2 {[%clk 0:03:00]}  Nc6 {[%clk 0:02:56]} 11. e3 {[%clk 0:02:52]}  Nb4 {[%clk 0:02:50]} 12. Bxb4 {[%clk 0:02:33]}  Bxb4 {[%clk 0:02:48]} 13. a3 {[%clk 0:02:34]}  Ba5 {[%clk 0:02:44]} 14. b4 {[%clk 0:02:32]}  Bb6 {[%clk 0:02:44]} 15. Nbd2 {[%clk 0:02:33]}  a5 {[%clk 0:02:39]} 16. Ne5 {[%clk 0:02:26]}  Bxg2 {[%clk 0:02:37]} 17. Kxg2 {[%clk 0:02:26]}  Nd5 {[%clk 0:02:29]} 18. Nc6 {[%clk 0:02:24]}  Qg5 {[%clk 0:02:07]} 19. Nf3 {[%clk 0:01:52]}  Qxe3 {[%clk 0:01:59]} 20. Ne7+ {[%clk 0:01:36]}  Kh8 {[%clk 0:01:41]} 21. Nxd5 {[%clk 0:01:35]} 1-0


[Site "https://www.chess.com"]

[Event "Titled Tuesday Blitz June 6 Early 2023"]
[White "Bachmann, Axel"]
[Black "Trifan, Andrei Ioan"]
[WhiteFideId "3700488"]
[BlackFideId "12967068"]
[WhiteElo "2605"]
[BlackElo "2208"]
[Result "0-1"]
[Round "3"]
[TimeControl "180+2"]
[Date "2023.06.06"]
[WhiteClock "0:00:12"]
[BlackClock "0:00:33"]
[Board "146"]

1. e4 {[%clk 0:03:00]}  e5 {[%clk 0:02:58]} 2. Nf3 {[%clk 0:03:00]}  Nc6 {[%clk 0:02:58]} 3. Bc4 {[%clk 0:02:58]}  Bc5 {[%clk 0:02:58]} 4. b4 {[%clk 0:02:58]}  Bxb4 {[%clk 0:02:54]} 5. c3 {[%clk 0:02:58]}  Ba5 {[%clk 0:02:54]} 6. O-O {[%clk 0:02:55]}  Nf6 {[%clk 0:02:36]} 7. d4 {[%clk 0:02:50]}  d6 {[%clk 0:02:35]} 8. d5 {[%clk 0:02:39]}  Ne7 {[%clk 0:02:32]} 9. Qa4+ {[%clk 0:02:39]}  c6 {[%clk 0:02:33]} 10. dxc6 {[%clk 0:02:36]}  bxc6 {[%clk 0:02:33]} 11. Bg5 {[%clk 0:02:28]}  Bb6 {[%clk 0:02:27]} 12. Nbd2 {[%clk 0:02:24]}  Bd7 {[%clk 0:02:23]} 13. Rfd1 {[%clk 0:02:21]}  Qc7 {[%clk 0:02:18]} 14. Bd3 {[%clk 0:02:19]}  O-O {[%clk 0:02:10]} 15. Nc4 {[%clk 0:02:13]}  Bc5 {[%clk 0:02:06]} 16. Rab1 {[%clk 0:01:43]}  Ng6 {[%clk 0:02:05]} 17. Rb3 {[%clk 0:01:14]}  Rab8 {[%clk 0:01:53]} 18. Rdb1 {[%clk 0:01:12]}  Ng4 {[%clk 0:01:42]} 19. Ne3 {[%clk 0:01:01]}  Nxe3 {[%clk 0:01:41]} 20. Bxe3 {[%clk 0:01:02]}  Bxe3 {[%clk 0:01:36]} 21. fxe3 {[%clk 0:01:03]}  c5 {[%clk 0:01:21]} 22. Qa6 {[%clk 0:00:54]}  Bc8 {[%clk 0:01:16]} 23. Qa4 {[%clk 0:00:34]}  Be6 {[%clk 0:01:10]} 24. c4 {[%clk 0:00:33]}  Rb6 {[%clk 0:00:59]} 25. Nd2 {[%clk 0:00:24]}  h6 {[%clk 0:00:56]} 26. Be2 {[%clk 0:00:24]}  Rfb8 {[%clk 0:00:53]} 27. h3 {[%clk 0:00:20]}  Ne7 {[%clk 0:00:50]} 28. Bg4 {[%clk 0:00:19]}  Bxg4 {[%clk 0:00:46]} 29. hxg4 {[%clk 0:00:20]}  Nc6 {[%clk 0:00:44]} 30. Nf3 {[%clk 0:00:18]}  Nb4 {[%clk 0:00:36]} 31. a3 {[%clk 0:00:17]}  Ra6 {[%clk 0:00:31]} 32. Qxa6 {[%clk 0:00:11]}  Nxa6 {[%clk 0:00:32]} 33. Rxb8+ {[%clk 0:00:12]}  Nxb8 {[%clk 0:00:33]} 0-1


[Site "https://www.chess.com"]

[Event "Titled Tuesday Blitz June 6 Early 2023"]
[White "Gatterer, Florian"]
[Black "Aradhya, Garg"]
[WhiteFideId "811688"]
[BlackFideId "25006746"]
[WhiteElo "2221"]
[BlackElo "2263"]
[Result "0-1"]
[Round "3"]
[TimeControl "180+2"]
[Date "2023.06.06"]
[WhiteClock "0:00:01"]
[BlackClock "0:00:27"]
[Board "148"]

1. c4 {[%clk 0:03:00]}  e5 {[%clk 0:02:58]} 2. Nc3 {[%clk 0:03:00]}  Nf6 {[%clk 0:02:58]} 3. Nf3 {[%clk 0:03:00]}  Nc6 {[%clk 0:02:58]} 4. a3 {[%clk 0:02:57]}  d5 {[%clk 0:02:58]} 5. cxd5 {[%clk 0:02:56]}  Nxd5 {[%clk 0:02:59]} 6. Qc2 {[%clk 0:02:56]}  g6 {[%clk 0:02:57]} 7. e3 {[%clk 0:02:56]}  Bg7 {[%clk 0:02:57]} 8. Bb5 {[%clk 0:02:54]}  O-O {[%clk 0:02:56]} 9. O-O {[%clk 0:02:53]}  Bg4 {[%clk 0:02:51]} 10. Qe4 {[%clk 0:02:49]}  Nf6 {[%clk 0:02:50]} 11. Qc2 {[%clk 0:02:45]}  Bxf3 {[%clk 0:02:48]} 12. gxf3 {[%clk 0:02:45]}  Qc8 {[%clk 0:02:48]} 13. Ne4 {[%clk 0:02:27]}  Qh3 {[%clk 0:02:45]} 14. Nxf6+ {[%clk 0:02:26]}  Bxf6 {[%clk 0:02:45]} 15. Qe4 {[%clk 0:02:26]}  Ne7 {[%clk 0:02:42]} 16. Qg4 {[%clk 0:02:23]}  Qh6 {[%clk 0:02:41]} 17. e4 {[%clk 0:02:03]}  Rfd8 {[%clk 0:02:30]} 18. d4 {[%clk 0:02:02]}  Qg7 {[%clk 0:02:30]} 19. d5 {[%clk 0:01:59]}  c6 {[%clk 0:02:20]} 20. dxc6 {[%clk 0:01:59]}  Nxc6 {[%clk 0:02:20]} 21. Bxc6 {[%clk 0:01:59]}  bxc6 {[%clk 0:02:21]} 22. Bg5 {[%clk 0:01:59]}  Rd3 {[%clk 0:02:04]} 23. Rfd1 {[%clk 0:01:36]}  Rad8 {[%clk 0:02:02]} 24. Rxd3 {[%clk 0:01:16]}  Rxd3 {[%clk 0:02:03]} 25. Rc1 {[%clk 0:01:16]}  h5 {[%clk 0:01:57]} 26. Qh4 {[%clk 0:01:09]}  Rxf3 {[%clk 0:01:21]} 27. Rxc6 {[%clk 0:01:02]}  Bxg5 {[%clk 0:01:22]} 28. Qxg5 {[%clk 0:00:53]}  Rf4 {[%clk 0:01:20]} 29. Qd8+ {[%clk 0:00:30]}  Kh7 {[%clk 0:01:18]} 30. Qd5 {[%clk 0:00:30]}  h4 {[%clk 0:01:02]} 31. h3 {[%clk 0:00:26]}  g5 {[%clk 0:00:48]} 32. Rc3 {[%clk 0:00:12]}  g4 {[%clk 0:00:47]} 33. hxg4 {[%clk 0:00:10]}  Qxg4+ {[%clk 0:00:31]} 34. Kf1 {[%clk 0:00:09]}  h3 {[%clk 0:00:31]} 35. Qxe5 {[%clk 0:00:01]}  h2 {[%clk 0:00:27]} 0-1


[Site "https://www.chess.com"]

[Event "Titled Tuesday Blitz June 6 Early 2023"]
[White "Orlov, Georgi"]
[Black "a-z30"]
[WhiteFideId "2011271"]
[WhiteElo "2635"]
[BlackElo "2396"]
[Result "1-0"]
[Round "3"]
[TimeControl "180+2"]
[Date "2023.06.06"]
[WhiteClock "0:00:59"]
[BlackClock "0:00:03"]
[Board "150"]

1. d4 {[%clk 0:03:00]}  d6 {[%clk 0:03:00]} 2. Nf3 {[%clk 0:03:00]}  Nf6 {[%clk 0:03:00]} 3. c4 {[%clk 0:03:01]}  g6 {[%clk 0:03:00]} 4. Nc3 {[%clk 0:03:01]}  Bg7 {[%clk 0:03:01]} 5. e4 {[%clk 0:03:01]}  O-O {[%clk 0:03:01]} 6. Be2 {[%clk 0:03:02]}  c5 {[%clk 0:03:02]} 7. O-O {[%clk 0:03:01]}  Bg4 {[%clk 0:03:00]} 8. Be3 {[%clk 0:02:57]}  Bxf3 {[%clk 0:02:59]} 9. Bxf3 {[%clk 0:02:56]}  cxd4 {[%clk 0:03:00]} 10. Bxd4 {[%clk 0:02:56]}  Nc6 {[%clk 0:03:01]} 11. Be3 {[%clk 0:02:56]}  Rc8 {[%clk 0:03:01]} 12. Be2 {[%clk 0:02:55]}  a6 {[%clk 0:02:59]} 13. Rc1 {[%clk 0:02:53]}  Qa5 {[%clk 0:02:44]} 14. b3 {[%clk 0:02:52]}  b5 {[%clk 0:02:16]} 15. Bd2 {[%clk 0:02:35]}  b4 {[%clk 0:02:11]} 16. Nd5 {[%clk 0:02:21]}  Nxe4 {[%clk 0:02:10]} 17. Bf3 {[%clk 0:02:20]}  Nxd2 {[%clk 0:02:03]} 18. Qxd2 {[%clk 0:02:20]}  e6 {[%clk 0:01:58]} 19. Ne3 {[%clk 0:02:18]}  Nd4 {[%clk 0:01:52]} 20. Bd1 {[%clk 0:02:15]}  Qc5 {[%clk 0:01:36]} 21. Kh1 {[%clk 0:02:14]}  a5 {[%clk 0:01:36]} 22. f4 {[%clk 0:02:13]}  d5 {[%clk 0:01:07]} 23. Bg4 {[%clk 0:02:05]}  h5 {[%clk 0:00:47]} 24. cxd5 {[%clk 0:02:00]}  Qe7 {[%clk 0:00:23]} 25. Rxc8 {[%clk 0:01:57]}  Rxc8 {[%clk 0:00:24]} 26. Bh3 {[%clk 0:01:57]}  Rc3 {[%clk 0:00:20]} 27. dxe6 {[%clk 0:01:54]}  Nxe6 {[%clk 0:00:20]} 28. Nd5 {[%clk 0:01:48]}  Qd8 {[%clk 0:00:20]} 29. Rd1 {[%clk 0:01:47]}  Nd4 {[%clk 0:00:16]} 30. Nxc3 {[%clk 0:01:44]}  bxc3 {[%clk 0:00:11]} 31. Qxc3 {[%clk 0:01:44]}  Qh4 {[%clk 0:00:12]} 32. Qc8+ {[%clk 0:01:39]}  Kh7 {[%clk 0:00:10]} 33. g3 {[%clk 0:01:14]}  Qe7 {[%clk 0:00:08]} 34. Qc4 {[%clk 0:01:06]}  Qe3 {[%clk 0:00:07]} 35. Bg2 {[%clk 0:01:06]}  Ne2 {[%clk 0:00:06]} 36. Qd3 {[%clk 0:01:01]}  Qf2 {[%clk 0:00:03]} 37. Rf1 {[%clk 0:00:59]} 1-0


[Site "https://www.chess.com"]